Cogmind - Beta 9.4 @@@ ROGUE MODE // 2020.01.19 @ 18:07:09 // Winter2019/RPGLIKE Player: Cookie Result: Destroyed by H-66 Slayer with Gauss Rifle Performance ------------- Evolutions (5) 2500 Regions Visited (13) 2600 Robots Destroyed (173) 865 Value Destroyed (6020) 6020 Prototype IDs (17) 340 Alien Tech Used (0) 0 Bonus (1530) 1530 TOTAL SCORE: 13855 Bonus ------- High Alert Combat Kills 890 Follower Combat Kills 358 Met Data Miner 300 Friendly Fire -18 Cogmind --------- Core Integrity 0/2050 Matter 434/450 Energy 455/530 System Corruption 0% Temperature Cool (-42) Movement Rolling (110) Ox1 Location -5/Extension Parts ------- > --- POWER (4) -------- Micro Nuclear Core Fission Core Cold Fusion Reactor Micro Fission Core > --- PROPULSION (4) --- Armored Huge Wheel Armored Huge Wheel > --- UTILITY (8) ------ Improved Cryofiber Web Advanced Heat Sink Compact Matter Pod Enhanced Optical Array Advanced Signal Interpreter Advanced Targeting Computer Improved Medium Armor Plating Advanced Hacking Suite > --- WEAPON (7) ------- Heavy Laser Plasma Rifle Phase Cannon Heavy Plasma Cannon Minigun Mini Assault Cannon Improved Proton Missile Launcher > --- INVENTORY (2) ---- Coil Gun Heavy Rocket Launcher Peak State ------------ > --- POWER ------------ Micro Nuclear Core Fission Core Cold Fusion Reactor Micro Fission Core > --- PROPULSION ------- Armored Huge Wheel Armored Huge Wheel > --- UTILITY ---------- Improved Cryofiber Web Advanced Heat Sink Compact Matter Pod Enhanced Optical Array Advanced Signal Interpreter Advanced Targeting Computer Improved Medium Armor Plating Advanced Hacking Suite > --- WEAPON ----------- Heavy Laser Plasma Rifle Phase Cannon Heavy Plasma Cannon Minigun Coil Gun Mini Assault Cannon > --- INVENTORY -------- Improved Proton Missile Launcher Heavy Rocket Launcher [Rating: 102] Favorites ----------- Power Nuclear Core Engine Improved Ion Engine Power Core Nuclear Core Reactor Cold Fusion Reactor Propulsion Wheel Wheel Wheel Utility Hacking Suite Device Advanced Heat Sink Storage Compact Matter Pod Processor Enhanced Optical Array Hackware Hacking Suite Protection Improved Light Armor Plating Weapon Minigun Energy Gun Heavy Laser Energy Cannon Heavy Plasma Cannon Ballistic Gun Minigun Ballistic Cannon Mini Assault Cannon Launcher Heavy Rocket Launcher Build | -11 -10 -10 -10 -9 -8 -7 -7 -7 -7 -6 -6 -5 -5 ------- Run | Scr Mat Min Exi Min Mat Fac Low Low Dat Pro Fac Fac Ext Slots Evolved 19 | 5 . 1 . 2 3 3 . . . 1 1 3 . Power 3 | 1 . . . 1 . 1 . . . . . . . Propulsion 3 | 1 . 1 . . . . . . . . . 1 . Utility 7 | 1 . . . 1 2 1 . . . 1 . 1 . Weapon 6 | 2 . . . . 1 1 . . . . 1 1 . Parts Attached 93 | 7 3 4 . 4 32 10 2 . . 2 12 12 5 Power 16 | 2 . 1 . 2 5 1 1 . . 1 3 . . Engine 6 | 2 . 1 . 1 1 1 . . . . . . . Core 9 | . . . . 1 4 . 1 . . 1 2 . . Reactor 1 | . . . . . . . . . . . 1 . . Propulsion 11 | 2 . 1 . . 4 . . . . . 2 2 . Treads . | . . . . . . . . . . . . . . Leg . | . . . . . . . . . . . . . . Wheel 11 | 2 . 1 . . 4 . . . . . 2 2 . Hover . | . . . . . . . . . . . . . . Flight . | . . . . . . . . . . . . . . Utility 20 | . 2 . . 1 8 3 . . . 1 1 4 . Device 5 | . . . . 1 2 . . . . . . 2 . Storage 1 | . . . . . 1 . . . . . . . . Processor 5 | . 1 . . . 1 2 . . . . 1 . . Hackware 2 | . 1 . . . . . . . . . . 1 . Protection 7 | . . . . . 4 1 . . . 1 . 1 . Artifact . | . . . . . . . . . . . . . . Weapon 46 | 3 1 2 . 1 15 6 1 . . . 6 6 5 Energy Gun 16 | 2 . 2 . . 8 . . . . . . 4 . Energy Cannon 6 | . . . . . . 3 . . . . 3 . . Ballistic Gun 13 | 1 . . . 1 5 2 1 . . . 2 . 1 Ballistic Cannon 3 | . 1 . . . . . . . . . 1 . 1 Launcher 8 | . . . . . 2 1 . . . . . 2 3 Special Weapon . | . . . . . . . . . . . . . . Impact Weapon . | . . . . . . . . . . . . . . Slashing Weapon . | . . . . . . . . . . . . . . Piercing Weapon . | . . . . . . . . . . . . . . Special Melee Weapon . | . . . . . . . . . . . . . . Unidentified Prototypes 3 | . . . . . 1 . . . . . 2 . . Parts Lost . | . . . . . . . . . . . . . . Power . | . . . . . . . . . . . . . . Propulsion . | . . . . . . . . . . . . . . Utility . | . . . . . . . . . . . . . . Weapon . | . . . . . . . . . . . . . . Highest Loss Streak . | . . . . . . . . . . . . . . Average Slot Usage (%) 96 | . 79 98 100 99 99 94 99 100 100 99 99 88 91 Engine 8 | . 22 19 20 18 11 5 10 5 5 5 2 . . Core 10 | . . . . 4 8 11 11 16 16 14 15 13 13 Reactor 1 | . . . . . . . . . . . 2 4 4 Wheel 17 | . 22 27 30 26 20 17 16 16 16 15 15 8 8 Device 5 | . . . . 5 6 5 5 5 5 5 5 6 8 Storage 3 | . . . . . 5 5 5 5 5 5 5 4 4 Processor 11 | . 1 10 10 8 6 8 16 16 16 15 15 13 13 Hackware 5 | . 1 10 10 8 6 5 5 5 5 5 5 3 4 Protection 2 | . . . . . 3 5 . . . 4 4 3 4 Energy Gun 7 | . 14 10 10 8 19 3 . . . . . 2 8 Energy Cannon 5 | . . . . . . 5 11 11 11 10 9 8 8 Ballistic Gun 8 | . 11 10 10 8 5 12 10 11 11 10 10 8 5 Ballistic Cannon 3 | . 7 10 10 8 . . . . . . 4 4 3 Launcher 2 | . . . . . . 4 5 5 5 5 5 5 2 Naked Turns . | . . . . . . . . . . . . . . Heaviest Build 87 | 15 17 20 20 29 39 57 59 59 59 62 74 87 83 Greatest Support 56 | 20 20 30 30 30 36 30 30 30 30 30 30 56 56 Greatest Overweight (x) 2 | . . . . . 1 1 1 1 1 2 2 2 1 Average Overweight (x) . | . . . . . . 1 1 1 1 1 2 1 1 Largest Inventory Capacity 2 | . . 1 1 1 1 1 2 2 2 2 2 2 2 Average Capacity 1 | . . . 1 1 1 1 1 2 2 2 2 2 2 Most Carried 2 | . . 1 1 1 1 1 2 1 1 1 2 2 2 Average Carried . | . . . 1 . . . 1 1 1 . . . 2 Final Capacity 2 | . . 1 1 1 1 1 2 2 2 2 2 2 2 Final Carried 2 | . . 1 1 1 1 1 1 1 1 . 1 2 2 Class Distribution -------------------- 61% | Scavenger-Gunner 14% | Scavenger-Executioner 11% | Generator-Executioner 5% | Gunner 5% | Hacker-Executioner Dominant Class ---------------- Gunner | -10/Materials Scavenger-Gunner | -10/Mines Scavenger-Gunner | -10/Exiles Scavenger-Gunner | -9/Mines Scavenger-Gunner | -8/Materials Scavenger-Gunner | -7/Factory Scavenger-Gunner | -7/Lower Caves Scavenger-Gunner | -7/Lower Caves Scavenger-Gunner | -7/Data Miner Scavenger-Gunner | -6/Proximity Caves Scavenger-Executioner | -6/Factory Generator-Executioner | -5/Factory Hacker-Executioner | -5/Extension Resources | -11 -10 -10 -10 -9 -8 -7 -7 -7 -7 -6 -6 -5 -5 ----------- Run | Scr Mat Min Exi Min Mat Fac Low Low Dat Pro Fac Fac Ext Matter Collected 3652 | 221 152 63 . 316 847 121 264 37 . 72 498 769 292 Remotely . | . . . . . . . . . . . . . . Salvage Created 6360 | . 210 63 . 280 2086 121 604 . . 42 1186 1313 455 Parts 271 | . 12 9 . 18 94 8 19 . . 4 53 36 18 Haulers Intercepted 1 | . . . . . 1 . . . . . . . . Recyclers Shooed 9 | . 1 . . 1 1 . . . . . 1 3 2 Parts Field Recycled . | . . . . . . . . . . . . . . Retrieved Matter . | . . . . . . . . . . . . . . Parts Self-Destructed 29 | . . . . . . . 14 7 . 8 . . . Prevented 4 | . . . . . . . 4 . . . . . . Kills | -11 -10 -10 -10 -9 -8 -7 -7 -7 -7 -6 -6 -5 -5 ------- Run | Scr Mat Min Exi Min Mat Fac Low Low Dat Pro Fac Fac Ext Combat Hostiles Destroyed 124 | . 10 4 . 8 33 2 15 . . 2 24 13 13 Guns 74 | . 8 2 . 7 33 1 4 . . . 9 2 8 Cannons 28 | . 2 2 . 1 . 1 2 . . 2 7 6 5 AOE 22 | . . . . . . . 9 . . . 8 5 . Classes Destroyed 16 | . 4 1 . 2 5 1 1 . . . 1 1 . Worker 10 | . . . . 1 5 . . . . . 4 . . Builder 9 | . . . . . 3 . . . . . 5 1 . Tunneler 3 | . . 1 . . 1 . . . . . 1 . . Hauler 1 | . . . . . 1 . . . . . . . . Recycler 15 | . . . . 1 7 . . . . . 1 6 . Operator 5 | . 1 . . . 1 . . . . . 3 . . Watcher 6 | . 1 . . . 2 . . . . . 1 1 1 Swarmer 34 | . 6 . . 3 6 . 2 . . 2 4 . 11 Grunt 67 | . 4 4 . 5 18 . 9 . . . 18 8 1 Brawler 4 | . . . . . 3 . 1 . . . . . . Duelist 1 | . . . . . . . 1 . . . . . . Protector 1 | . . . . . . . . . . . . 1 . Sentry 8 | . . . . . 5 1 1 . . . . 1 . Hunter 4 | . . . . . 1 . 1 . . . . 1 1 Programmer 4 | . . . . . . 1 . . . . 1 2 . Behemoth 1 | . . . . . . . . . . . 1 . . Best Kill Streak 13 | . 5 2 . 3 10 1 9 . . 2 13 9 5 Combat Bots Only 9 | . 5 2 . 3 7 1 9 . . 2 8 5 5 Max Kills in Single Turn 5 | . 1 1 . 1 2 1 5 . . 1 5 4 2 Gunslinging 1 | . . . . . 1 . . . . . . . . Exploded 4 | . . . . . . . 4 . . . 2 2 . Melee . | . . . . . . . . . . . . . . Uniques/NPCs Destroyed . | . . . . . . . . . . . . . . Combat | -11 -10 -10 -10 -9 -8 -7 -7 -7 -7 -6 -6 -5 -5 -------- Run | Scr Mat Min Exi Min Mat Fac Low Low Dat Pro Fac Fac Ext Damage Taken 6547 | . 280 244 . 298 2213 98 374 . . 86 916 963 1075 Core 5012 | . 214 202 . 250 1684 74 301 . . 64 689 747 787 Absorbed by Shields . | . . . . . . . . . . . . . . Redirected to Core 4029 | . 196 143 . 154 1357 48 254 . . 48 539 635 655 Core Remaining (%) 66 | 100 . . . 93 42 . . . . 55 44 . . Volleys Fired 277 | . 24 12 . 20 123 4 13 . . 3 40 21 17 Largest 7 | . 3 3 . 3 4 4 5 . . 5 6 7 7 Hottest 440 | . 110 111 . 111 276 184 223 . . 231 322 407 440 Shots Fired 1144 | . 72 36 . 60 464 16 58 . . 14 183 131 110 Gun 804 | . 53 24 . 40 459 11 26 . . 6 78 52 55 Cannon 295 | . 19 12 . 20 3 2 26 . . 6 97 62 48 Launcher 45 | . . . . . 2 3 6 . . 2 8 17 7 Special . | . . . . . . . . . . . . . . Kinetic 441 | . 43 24 . 40 90 8 26 . . 6 103 62 39 Thermal 628 | . 29 12 . 20 372 4 13 . . 3 64 47 64 Explosive 33 | . . . . . 2 3 6 . . 2 8 11 1 Electromagnetic 42 | . . . . . . 1 13 . . 3 8 11 6 Robot Hit Streak 19 | . 4 7 . 5 18 3 8 . . 7 18 9 19 Robot Miss Streak 9 | . 6 2 . 6 9 2 2 . . 2 4 3 4 Penetration Max 1 | . . . . . . . . . . . 1 1 . Secondary Targets 11 | . . . . . 11 . . . . . . . . Max Gunslinging Chain 1 | . . . . . 1 . . . . . . . . Shots Hit Robots 626 | . 32 25 . 25 259 8 38 . . 4 115 73 47 Core Hits 301 | . 15 10 . 13 93 4 28 . . 3 65 47 23 Critical Hits 7 | . 1 . . . 1 . 1 . . . 2 1 1 Critical Kills 2 | . 1 . . . . . 1 . . . . . . Critical Parts Destroyed 5 | . . . . . 1 . . . . . 2 1 1 Melee Attacks . | . . . . . . . . . . . . . . Impact . | . . . . . . . . . . . . . . Slashing . | . . . . . . . . . . . . . . Piercing . | . . . . . . . . . . . . . . Sneak Attacks . | . . . . . . . . . . . . . . Combat Hostiles . | . . . . . . . . . . . . . . Follow-up Attacks . | . . . . . . . . . . . . . . Damage Inflicted 17312 | . 467 364 . 390 4591 171 1754 . . 149 5183 3158 1085 Guns 7502 | . 310 238 . 287 4431 102 271 . . . 862 512 489 Cannons 4398 | . 157 126 . 57 33 32 507 . . 103 1687 1250 446 Explosions 5411 | . . . . 46 127 37 976 . . 46 2634 1396 149 Melee . | . . . . . . . . . . . . . . Ramming 1 | . . . . . . . . . . . . . 1 Kinetic 3761 | . 273 262 . 153 706 63 271 . . . 1100 683 250 Thermal 9667 | . 194 102 . 237 3758 71 243 . . 28 3080 1269 685 Explosive 2997 | . . . . . 127 37 976 . . 46 895 916 . Electromagnetic 886 | . . . . . . . 264 . . 75 108 290 149 Impact . | . . . . . . . . . . . . . . Slashing . | . . . . . . . . . . . . . . Piercing . | . . . . . . . . . . . . . . Highest Corruption 5 | . . . . . 5 . . . . . . 2 . Average Corruption 3 | . . . . . 4 . . . . . . 1 . Corruption Purged 2 | . . . . . . . . . . . . 2 . Effects 58 | . . . . . 53 . . . . . . 5 . Message Errors 6 | . . . . . 5 . . . . . . 1 . Matter Fused 9 | . . . . . 9 . . . . . . . . Heat Flow Errors 2 | . . . . . 1 . . . . . . 1 . Energy Discharges 1 | . . . . . 1 . . . . . . . . Data Loss (minor) 13 | . . . . . 10 . . . . . . 3 . Data Loss (major) 3 | . . . . . 3 . . . . . . . . Misfires 1 | . . . . . 1 . . . . . . . . Targeting Errors 22 | . . . . . 22 . . . . . . . . Weapon Failures 1 | . . . . . 1 . . . . . . . . Overload Shots . | . . . . . . . . . . . . . . Overflow Damage 482 | . . . . 12 . . 27 . . 3 353 82 5 Projectiles 147 | . . . . 12 . . 2 . . 3 73 52 5 Explosions 335 | . . . . . . . 25 . . . 280 30 . Melee . | . . . . . . . . . . . . . . Knockbacks 10 | . 3 4 . 1 . . . . . . . 2 . Impact . | . . . . . . . . . . . . . . Kinetic 8 | . 3 3 . 1 . . . . . . . 1 . Secondary 2 | . . 1 . . . . . . . . . 1 . Self-Inflicted Damage 232 | . . . . 55 . . 13 . . . 138 6 20 Shots 7 | . . . . 1 . . 2 . . . 2 1 1 Rammed 1 | . . . . . . . . . . . . . 1 Targets Rammed 1 | . . . . . . . . . . . . . 1 Kicked . | . . . . . . . . . . . . . . Crushed . | . . . . . . . . . . . . . . Highest Temperature 558 | . 207 111 . 117 558 15 226 . . 174 312 282 338 Average Temperature 121 | . 66 57 . 44 166 9 90 . . 78 76 111 111 Received Heat Transfer 1596 | . 54 132 . 87 792 18 90 . . . 162 201 60 Effects 28 | . . . . . 27 . . . . . . . 1 Shutdowns 15 | . . . . . 15 . . . . . . . . Energy Bleed 5 | . . . . . 4 . . . . . . . 1 Interference 1 | . . . . . 1 . . . . . . . . Matter Decay 2 | . . . . . 2 . . . . . . . . Short Circuit 2 | . . . . . 2 . . . . . . . . Damage (minor) 2 | . . . . . 2 . . . . . . . . Damage (core) 1 | . . . . . 1 . . . . . . . . Siege Activations . | . . . . . . . . . . . . . . Robots Corrupted . | . . . . . . . . . . . . . . Combat Hostiles . | . . . . . . . . . . . . . . Parts Fried . | . . . . . . . . . . . . . . Impact Corruptions . | . . . . . . . . . . . . . . Robots Melted . | . . . . . . . . . . . . . . Combat Hostiles . | . . . . . . . . . . . . . . Parts Melted 31 | . . . . . 21 . . . . . 3 3 4 Heat Transferred 15233 | . 556 259 . 531 7696 111 333 . . 37 3003 1502 1205 Parts Sabotaged . | . . . . . . . . . . . . . . Parts Stolen . | . . . . . . . . . . . . . . Parts Stripped . | . . . . . . . . . . . . . . Power Chain Reactions . | . . . . . . . . . . . . . . Missiles Intercepted . | . . . . . . . . . . . . . . Alert | -11 -10 -10 -10 -9 -8 -7 -7 -7 -7 -6 -6 -5 -5 ------- Run | Scr Mat Min Exi Min Mat Fac Low Low Dat Pro Fac Fac Ext Peak Influence 930 | . 302 174 . 255 786 502 . . . . 930 794 830 Average Influence 403 | . 185 92 . 111 493 432 . . . . 282 635 655 Maximum Alert Level 3 | . 1 . . 1 3 2 . . . . 3 3 3 Low Security (%) 29 | 100 41 100 . 86 10 . . . . . 48 . . Level 1 17 | . 58 . . 13 20 15 . . . . 29 . 1 Level 2 38 | . . . . . 53 84 . . . . 6 76 49 Level 3 14 | . . . . . 15 . . . . . 14 23 49 Level 4 . | . . . . . . . . . . . . . . Level 5 . | . . . . . . . . . . . . . . High Security . | . . . . . . . . . . . . . . Max Security . | . . . . . . . . . . . . . . Squads Dispatched 28 | . 2 . . . 8 1 . . . . 6 9 2 Investigation 4 | . . . . . 3 . . . . . 1 . . Extermination 3 | . . . . . . 1 . . . . 1 1 . Reinforcement 11 | . 2 . . . 2 . . . . . 4 2 1 Assault 7 | . . . . . 3 . . . . . . 3 1 Garrison 3 | . . . . . . . . . . . . 3 . Intercept . | . . . . . . . . . . . . . . Construction Impeded 3 | . . . . . . . . . . . 2 1 . Haulers Reinforced . | . . . . . . . . . . . . . . Stealth | -11 -10 -10 -10 -9 -8 -7 -7 -7 -7 -6 -6 -5 -5 --------- Run | Scr Mat Min Exi Min Mat Fac Low Low Dat Pro Fac Fac Ext Distress Signals 11 | . . . . . 9 . . . . . 1 . 1 Communications Jammed . | . . . . . . . . . . . . . . Distress Signals . | . . . . . . . . . . . . . . Times Spotted 184 | . 13 6 . 8 66 4 15 . . 3 27 17 25 Peak Tracking Total 9 | . 5 2 . 3 8 2 9 . . 3 5 5 9 Tactical Retreats 12 | . . . . . 8 . . . . . 2 1 1 Traps | -11 -10 -10 -10 -9 -8 -7 -7 -7 -7 -6 -6 -5 -5 ------- Run | Scr Mat Min Exi Min Mat Fac Low Low Dat Pro Fac Fac Ext Traps Triggered 7 | . . . . . 4 1 . . . . . 1 1 Indirectly 1 | . . . . . . . . . . . . 1 . Trap Hack Attempts . | . . . . . . . . . . . . . . Triggered . | . . . . . . . . . . . . . . Disarmed . | . . . . . . . . . . . . . . Reprogrammed 6 | . . . . . 6 . . . . . . . . Reused 1 | . . . . . 1 . . . . . . . . Traps Extracted . | . . . . . . . . . . . . . . Installed . | . . . . . . . . . . . . . . Triggered 1 | . . . . . 1 . . . . . . . . Machines | -11 -10 -10 -10 -9 -8 -7 -7 -7 -7 -6 -6 -5 -5 ---------- Run | Scr Mat Min Exi Min Mat Fac Low Low Dat Pro Fac Fac Ext Machines Disabled 49 | . 2 1 . 2 6 . . . . . 30 6 2 Max in Single Turn 18 | . 1 1 . 1 1 . . . . . 18 3 1 Garrison Access 2 | . . . . . 1 . . . . . . 1 . Machines Sabotaged . | . . . . . . . . . . . . . . Garrisons Compromised 1 | . . . . . . 1 . . . . . . . Overloaded Fab Kills . | . . . . . . . . . . . . . . Fab Network Shutdowns . | . . . . . . . . . . . . . . Hacking | -11 -10 -10 -10 -9 -8 -7 -7 -7 -7 -6 -6 -5 -5 --------- Run | Scr Mat Min Exi Min Mat Fac Low Low Dat Pro Fac Fac Ext Machines Accessed 26 | . 3 . . . 4 4 . . 4 . 4 3 4 Terminals 20 | . 3 . . . 3 4 . . . . 4 2 4 Fabricators . | . . . . . . . . . . . . . . Repair Stations . | . . . . . . . . . . . . . . Recycling Units . | . . . . . . . . . . . . . . Scanalyzers . | . . . . . . . . . . . . . . Garrison Access 2 | . . . . . 1 . . . . . . 1 . Total Hacks 89 | . 7 . . . 17 11 . . 27 . 11 7 9 Successful 55 | . 3 . . . 10 4 . . 27 . 5 4 2 Failed 34 | . 4 . . . 7 7 . . . . 6 3 7 Catastrophic 4 | . 1 . . . . 2 . . . . 1 . . Database Lockouts . | . . . . . . . . . . . . . . Manual 34 | . 5 . 1 . 5 8 . . . . 7 3 5 Terminals 59 | . 7 . . . 15 11 . . . . 11 6 9 Fabricators . | . . . . . . . . . . . . . . Repair Stations . | . . . . . . . . . . . . . . Recycling Units . | . . . . . . . . . . . . . . Scanalyzers . | . . . . . . . . . . . . . . Garrison Access 3 | . . . . . 2 . . . . . . 1 . Terminal Hacks 53 | . 3 . . . 9 4 . . 27 . 5 3 2 Record 14 | . 1 . . . . 1 . . 11 . 1 . . Part Schematic 8 | . . . . . . . . . 8 . . . . Robot Schematic 5 | . . . . . . . . . 5 . . . . Prototype ID Bank 4 | . . . . . 1 . . . 3 . . . . Branch Access Points 5 | . 1 . . . 1 1 . . . . 1 1 . Terminal Index 3 | . . . . . 1 1 . . . . 1 . . Locate Traps 4 | . . . . . 2 . . . . . 1 1 . Reprogram Traps 1 | . . . . . 1 . . . . . . . . Recall Investigation 2 | . 1 . . . 1 . . . . . . . . Recall Assault 3 | . . . . . . . . . . . . 1 2 Zone Layout 4 | . . . . . 2 1 . . . . 1 . . Fabricator Hacks . | . . . . . . . . . . . . . . Repair Station Hacks . | . . . . . . . . . . . . . . Recycling Unit Hacks . | . . . . . . . . . . . . . . Scanalyzer . | . . . . . . . . . . . . . . Garrison Access Hacks 2 | . . . . . 1 . . . . . . 1 . Seal Access 2 | . . . . . 1 . . . . . . 1 . Unauthorized Hacks 1 | . . . . . . . . . . . 1 . . Terminals . | . . . . . . . . . . . . . . Fabricators . | . . . . . . . . . . . . . . Repair Stations . | . . . . . . . . . . . . . . Recycling Units . | . . . . . . . . . . . . . . Scanalyzers . | . . . . . . . . . . . . . . Garrison Access . | . . . . . . . . . . . . . . Data Cores Recovered . | . . . . . . . . . . . . . . Used . | . . . . . . . . . . . . . . Hacking Detections 19 | . 3 . . . 3 4 . . . . 4 1 4 Full Trace Events 2 | . . . . . 1 . . . . . 1 . . Feedback Events 1 | . . . . . 1 . . . . . . . . Corruption 1 | . . . . . 1 . . . . . . . . Feedback Blocked . | . . . . . . . . . . . . . . Robot Schematics Acquired 5 | . . . . . . . . . 5 . . . . Robots Built . | . . . . . . . . . . . . . . Matter . | . . . . . . . . . . . . . . Time . | . . . . . . . . . . . . . . Total Robot Build Rating . | . . . . . . . . . . . . . . Part Schematics Acquired 8 | . . . . . . . . . 8 . . . . Parts Built . | . . . . . . . . . . . . . . Matter . | . . . . . . . . . . . . . . Time . | . . . . . . . . . . . . . . Total Part Build Rating . | . . . . . . . . . . . . . . Parts Repaired . | . . . . . . . . . . . . . . Time . | . . . . . . . . . . . . . . Parts Recycled . | . . . . . . . . . . . . . . Recycled Matter . | . . . . . . . . . . . . . . Retrieved Matter . | . . . . . . . . . . . . . . Retrieved Components . | . . . . . . . . . . . . . . Parts Scanalyzed . | . . . . . . . . . . . . . . Part Schematics Acquired . | . . . . . . . . . . . . . . Parts Damaged . | . . . . . . . . . . . . . . Bothacking | -11 -10 -10 -10 -9 -8 -7 -7 -7 -7 -6 -6 -5 -5 ------------ Run | Scr Mat Min Exi Min Mat Fac Low Low Dat Pro Fac Fac Ext Used RIF Installer . | . . . . . . . . . . . . . . Robots Hacked . | . . . . . . . . . . . . . . Non-combat . | . . . . . . . . . . . . . . Combat . | . . . . . . . . . . . . . . Robot Hacks Applied . | . . . . . . . . . . . . . . Relay Couplers Released . | . . . . . . . . . . . . . . Robots Rewired . | . . . . . . . . . . . . . . Allies Hacked . | . . . . . . . . . . . . . . Hacks Repelled . | . . . . . . . . . . . . . . Allies | -11 -10 -10 -10 -9 -8 -7 -7 -7 -7 -6 -6 -5 -5 -------- Run | Scr Mat Min Exi Min Mat Fac Low Low Dat Pro Fac Fac Ext Total Allies 9 | . . . . 3 . . . . . 1 . . 5 Largest Group 4 | . . . . 3 3 . . . . 1 . . 4 Highest-Rated Group 113 | . . . . 40 40 . . . . 94 . . 113 Highest-Rated Ally 94 | . . . . 16 16 . . . . 94 . . 37 Total Orders . | . . . . . . . . . . . . . . Ally Attacks 64 | . . . . . 17 . . . . 2 . . 45 Total Damage 987 | . . . . . 202 . . . . 94 . . 691 Kills 11 | . . . . . 3 . . . . 1 . . 7 Allies Corrupted . | . . . . . . . . . . . . . . Allies Melted . | . . . . . . . . . . . . . . Intel | -11 -10 -10 -10 -9 -8 -7 -7 -7 -7 -6 -6 -5 -5 ------- Run | Scr Mat Min Exi Min Mat Fac Low Low Dat Pro Fac Fac Ext Robot Analysis Total . | . . . . . . . . . . . . . . Derelict Logs Recovered 4 | . . . . 1 . . 1 1 . 1 . . . Drone Launches . | . . . . . . . . . . . . . . Drone Recoveries . | . . . . . . . . . . . . . . Exploration | -11 -10 -10 -10 -9 -8 -7 -7 -7 -7 -6 -6 -5 -5 ------------- Run | Scr Mat Min Exi Min Mat Fac Low Low Dat Pro Fac Fac Ext Turns Passed 7770 | 40 400 220 419 723 1469 352 585 421 75 407 1091 1150 418 Spaces Moved 6005 | 38 300 178 524 707 927 352 574 468 84 384 649 555 265 Core 1 | 1 . . . . . . . . . . . . . Treads . | . . . . . . . . . . . . . . Legs . | . . . . . . . . . . . . . . Wheels 6004 | 37 300 178 524 707 927 352 574 468 84 384 649 555 265 Hover . | . . . . . . . . . . . . . . Flight . | . . . . . . . . . . . . . . Fastest Speed 50 | 50 80 80 80 80 80 90 90 90 90 90 100 100 110 Average Speed 91 | 79 80 80 80 80 89 90 90 90 90 99 100 107 110 Slowest Speed 120 | 80 80 80 80 80 96 90 90 90 90 100 100 120 110 Overloaded Moves . | . . . . . . . . . . . . . . Propulsion Burnouts . | . . . . . . . . . . . . . . Robots Hopped . | . . . . . . . . . . . . . . Cave-ins Triggered . | . . . . . . . . . . . . . . Exploration Rate (%) 51 | 3 53 36 77 99 64 12 82 75 75 66 25 20 37 Regions Visited 13 Branch Regions 8 Pre-discovered Areas 2 | . . . . . . . . . 1 1 . . . Known Exits Taken 12 | . 1 1 1 1 1 1 1 1 1 1 1 1 . Unknown Exits Taken 1 | 1 . . . . . . . . . . . . . Scrap Searched 14 | . . 1 . 3 . . 4 4 . 2 . . . Spaces Dug . | . . . . . . . . . . . . . . Terrain Destroyed 476 | . . . . 8 8 44 83 . . 10 152 127 44 Melee . | . . . . . . . . . . . . . . Projectile 57 | . . . . 1 . . 2 . . . 15 11 28 AOE 419 | . . . . 7 8 44 81 . . 10 137 116 16 Actions | -11 -10 -10 -10 -9 -8 -7 -7 -7 -7 -6 -6 -5 -5 --------- Run | Scr Mat Min Exi Min Mat Fac Low Low Dat Pro Fac Fac Ext Total 7631 | 44 404 227 523 818 1275 381 614 467 83 400 999 1054 342 Wait 1022 | . 73 7 . 76 114 . 12 . . 3 253 442 42 Move 5992 | 37 299 177 523 706 926 351 573 467 83 383 648 554 265 Hop . | . . . . . . . . . . . . . . Pick Up 31 | . . 1 . 1 . 8 2 . . 1 13 5 . Fast Attach 55 | 7 3 4 . 3 29 3 . . . . . 6 . Attach 31 | . . . . 1 1 7 2 . . 2 12 6 . Detach 4 | . . . . . 1 1 . . . . . 2 . Swap 7 | . . . . . 2 . . . . . . . 5 Drop 62 | . 1 3 . 2 26 7 2 . . 1 12 8 . Fire 277 | . 24 12 . 20 123 4 13 . . 3 40 21 17 Melee . | . . . . . . . . . . . . . . Ram 1 | . . . . . . . . . . . . . 1 Kick . | . . . . . . . . . . . . . . Crush . | . . . . . . . . . . . . . . Escape Stasis 8 | . . . . . . . . . . . . . 8 Rewire . | . . . . . . . . . . . . . . Trap . | . . . . . . . . . . . . . . Miscellaneous 141 | . 4 23 . 9 53 . 10 . . 7 21 10 4 Route ------- -11/Scrapyard -10/Materials (discovered 2 exits: *Mat / *Min) -10/Mines (discovered 2 exits: *Mat / *Exi) -10/Exiles (discovered 2 exits: *Min x2) -9/Mines (discovered 2 exits: *Mat x2) -8/Materials (discovered 3 exits: *Fac x3) -7/Factory (discovered 2 exits: *Low x2) -7/Lower Caves -7/Lower Caves (discovered 2 exits: Fac / *Dat) -7/Data Miner -6/Proximity Caves -6/Factory (discovered 4 exits: *Fac x2 / Low x2) -5/Factory (discovered 5 exits: *Fac / Upp x2 / *Ext x2) -5/Extension History --------- Turn | Location | Event 2 | -11/Scrapyard | Upgraded with Power slot (x1) 2 | -11/Scrapyard | Upgraded with Propulsion slot (x1) 2 | -11/Scrapyard | Upgraded with Utility slot (x1) 2 | -11/Scrapyard | Upgraded with Weapon slot (x2) 6 | -11/Scrapyard | Discovered new exit (range 16) 41 | -11/Scrapyard | Entered Materials 276 | -10/Materials | Identified exit to Mines 292 | -10/Materials | Discovered new exit (range 12) 313 | -10/Materials | Build established: Gunner 441 | -10/Materials | Entered Mines 443 | -10/Mines | Reached level 2 443 | -10/Mines | Joined a pair of Derelicts in attacking an 0b10 outpost 449 | -10/Mines | Met a Derelict bent on vengeance 467 | -10/Mines | Upgraded with Propulsion slot (x1) 603 | -10/Mines | Discovered new exit (range 5) 639 | -10/Mines | Identified exit to Materials 657 | -10/Mines | Deemed a non-threat by the Exiles lab entrance 657 | -10/Mines | Discovered new exit (range 5) 659 | -10/Mines | Identified exit to Exiles 661 | -10/Mines | Entered Exiles 674 | -10/Exiles | Discovered new exit (range 15) 684 | -10/Exiles | Identified exit to Mines 700 | -10/Exiles | Met 8R-AWN 714 | -10/Exiles | Met EX-HEX 744 | -10/Exiles | Met EX-DEC 782 | -10/Exiles | Build established: Scavenger-Gunner 796 | -10/Exiles | Discovered exit to Mines (range 14) 851 | -10/Exiles | Visited The Gauntlet 912 | -10/Exiles | Met EX-BIN 1080 | -10/Exiles | Entered Mines 1082 | -9/Mines | Reached level 3 1189 | -9/Mines | Learned location of 1 exit from Materials 1248 | -9/Mines | Assisted by bots powering up and referring to "LRC-V3" 1253 | -9/Mines | Upgraded with Power slot (x1) 1253 | -9/Mines | Upgraded with Utility slot (x1) 1365 | -9/Mines | Discovered new exit (range 5) 1368 | -9/Mines | Identified exit to Materials 1492 | -9/Mines | Discovered exit to Materials (range 5) 1498 | -9/Mines | Assisted by bots powering up and referring to "LRC-V3" 1803 | -9/Mines | Entered Materials 1803 | -8/Materials | Accompanied by 3 allies 1804 | -8/Materials | Identified exit to Factory 1805 | -8/Materials | Reached level 4 1807 | -8/Materials | Upgraded with Weapon slot (x1) 1879 | -8/Materials | Reached level 5 2000 | -8/Materials | Discovered exit to Factory (range 14) 2046 | -8/Materials | Upgraded with Utility slot (x1) 2157 | -8/Materials | Reached level 6 2180 | -8/Materials | Core integrity fell below 50% 2303 | -8/Materials | Upgraded with Utility slot (x1) 2423 | -8/Materials | Reached level 7 2603 | -8/Materials | First assault squad dispatched 3053 | -8/Materials | Reached level 8 3097 | -8/Materials | Destroyed 7 combat bots 3157 | -8/Materials | Discovered exit to Factory (range 4) 3272 | -8/Materials | Entered Factory 3273 | -7/Factory | Core integrity fell below 50% 3274 | -7/Factory | Reached level 9 3352 | -7/Factory | Identified exit to Lower Caves 3380 | -7/Factory | Upgraded with Power slot (x1) 3380 | -7/Factory | Upgraded with Utility slot (x1) 3380 | -7/Factory | Upgraded with Weapon slot (x1) 3624 | -7/Factory | Entered Lower Caves 3636 | -7/Lower Caves | Reached level 10 3647 | -7/Lower Caves | Core integrity fell below 20% 3715 | -7/Lower Caves | Learned location of 1 exit from Factory 4002 | -7/Lower Caves | Spotted B-75 Beast 4088 | -7/Lower Caves | Discovered new exit (range 12) 4096 | -7/Lower Caves | Attracted the attention of an 0b10 outpost 4127 | -7/Lower Caves | Identified exit to Lower Caves 4137 | -7/Lower Caves | Destroyed 9 combat bots 4209 | -7/Lower Caves | Entered another Lower Caves area 4211 | -7/Lower Caves | Reached level 11 4242 | -7/Lower Caves | Identified exit to Factory 4607 | -7/Lower Caves | Discovered new exit (range 7) 4614 | -7/Lower Caves | Identified exit to Data Miner 4630 | -7/Lower Caves | Entered Data Miner 4630 | -7/Data Miner | Discovered new exit (range 6) 4637 | -7/Data Miner | Identified exit to Proximity Caves 4644 | -7/Data Miner | Met Data Miner 4672 | -7/Data Miner | Learned location of Section 7 (-2) 4672 | -7/Data Miner | Acquired the access code to Warlord's prototype stash 4685 | -7/Data Miner | Received God Mode back door access code from Data Miner 4705 | -7/Data Miner | Entered Proximity Caves 4707 | -6/Proximity Caves | Reached level 12 4710 | -6/Proximity Caves | Upgraded with Utility slot (x1) 4883 | -6/Proximity Caves | Escorted by Enhanced Grunt 4959 | -6/Proximity Caves | Discovered exit to Factory (range 23) 5112 | -6/Proximity Caves | Entered Factory 5113 | -6/Factory | Identified exit to Factory 5114 | -6/Factory | Reached level 13 5234 | -6/Factory | Core integrity fell below 50% 5244 | -6/Factory | Reached level 14 5247 | -6/Factory | Upgraded with Weapon slot (x1) 5434 | -6/Factory | Spotted B-75 Beast 5445 | -6/Factory | Destroyed B-75 Beast 5513 | -6/Factory | Discovered exit to Factory (range 5) 5543 | -6/Factory | Build established: Scavenger-Executioner 5567 | -6/Factory | Identified exit to Lower Caves 5941 | -6/Factory | Reached level 15 5971 | -6/Factory | Reached level 16 6002 | -6/Factory | Destroyed 8 combat bots 6142 | -6/Factory | Reached level 17 6203 | -6/Factory | Entered another Factory area 6204 | -5/Factory | Core integrity fell below 50% 6205 | -5/Factory | Reached level 18 6222 | -5/Factory | Upgraded with Propulsion slot (x1) 6222 | -5/Factory | Upgraded with Utility slot (x1) 6222 | -5/Factory | Upgraded with Weapon slot (x1) 6503 | -5/Factory | First assault squad dispatched 6519 | -5/Factory | Incoming assault squad redirected 6782 | -5/Factory | Build established: Generator-Executioner 7022 | -5/Factory | Reached level 19 7121 | -5/Factory | Incoming assault squad redirected 7215 | -5/Factory | Garrison activated, responded to threat 7230 | -5/Factory | Core integrity fell below 20% 7234 | -5/Factory | Garrison activated, responded to threat 7274 | -5/Factory | Discovered new exit (range 4) 7277 | -5/Factory | Identified exit to Factory 7299 | -5/Factory | Discovered new exit (range 6) 7302 | -5/Factory | Identified exit to Upper Caves 7302 | -5/Factory | Identified exit to Extension 7353 | -5/Factory | Entered Extension 7355 | -5/Extension | Reached level 20 7363 | -5/Extension | Disrupted transfer network 7469 | -5/Extension | Rescued a captive Derelict 7470 | -5/Extension | Rescued a captive Derelict 7584 | -5/Extension | Rescued a captive Derelict 7600 | -5/Extension | Rescued a captive Derelict 7601 | -5/Extension | Rescued a captive Derelict 7601 | -5/Extension | Rescued a captive Derelict 7610 | -5/Extension | Reached level 21 7628 | -5/Extension | Build established: Hacker-Executioner 7653 | -5/Extension | First assault squad dispatched 7701 | -5/Extension | Spotted B-75 Beast 7771 | -5/Extension | Destroyed by H-66 Slayer with Gauss Rifle Last Messages --------------- 07725_ AM-1H4(h) suffers critical hit. 07725_ AM-1H4(h) destroyed. 07728_ YL-5B3(l) destroyed. 07741_ U-05 Engineer builds a Wall. 07743_ C-30 ARC bursts open, deploying its payload. 07743_ S-27 Virus unfolds itself. 07747_ Slammed into S-27 Virus. 07748_ S-27 Virus destroyed. 07749_ R-10 Processor collects Melee Analysis Suite. 07754_ R-10 Processor collects Carbon-fiber Leg. 07755_ Acquired 15 matter. 07759_ S-27 Virus destroyed. 07759_ Penetrated by Slug. 07759_ Slug penetrates Wall. 07760_ Machine disabled. 07762_ Targeting Computer melted. 07762_ H-66 Slayer destroyed. 07762_ Machine disabled. 07767_ Acquired 26 matter. 07769_ S-27 Virus destroyed. Map ----- +----------------------------------------------------+ | | | ?????????????????????????????????????????????????? | | ?????????????????????????????????????????????????? | | ?????????????????????????????????????????????????? | | ??????????############???????????????????????????? | | ??????????# T #???????????????????????????? | | ??####????# #???????????????????????????? | | ###T"#????# #???????????????????????????? | | #T# "###### !! #???????????????????????????? | | !! #?????????????????????????????? | | !! #?????????????????????????????? | | ########??????????????????????? | | #??????????????????????? | | #### #??????????????????????? | | #+##^!=#??# ###### #??????????????????????? | | ] /=^/#??# #????# #??????????????????????? | | #####??# #????# #??????????????????????? | | #??????# #????# #??????????????????????? | | ] #??????##########????# #??????????????????????? | | #????????????????????# #??????????????????????? | | #????????????????????#%#??????????????????????? | | ####????????????????????#*#??????????????????????? | | ????????????????????????#%#??????????????????????? | | ???????????????????????##[##?????????????????????? | | ???????????????????????#%**#?????????????????????? | | ???????????????????????##@##?????????????????????? | | ????????????????????????#]#??????????????????????? | | ????????????????????????#*#??????????????????????? | | ????????????????????????#!#??????????????????????? | | ????????????????????????#%#??????????????????????? | | ????????????????????????#h#??????????????????????? | | ????????????????????????#%#??????????????????????? | | ????????????????????????#Y#??????????????????????? | | ???????????????????????? % ??????????????????????? | | ???????????????????????? % ??????????????????????? | | ???????????????????????? R?????????????????????? | | ???????????????????????? ??????????????????????? | | ???????????????????????? ??????????????????????? | | ????????????????????????% ??????????????????????? | | ??????????????????????? ?????????????????????? | | ??????????????????????? ?????????????????????? | | ??????????????????????? ?????????????????????? | | ??????????????????????? ?????????????????????? | | ??????????????????????? B ?????????????????????? | | ??????????????????????? B ?????????????????????? | | ??????????????????????# ????????????????????? | | ??????????????????????# ????????????????????? | | ??????????????????????# ????????????????????? | | ???????????????????????#####?????????????????????? | | ?????????????????????????????????????????????????? | +----------------------------------------------------+ Best States ------------- Heat Dissipation 104 Energy Generation 54 Energy Capacity 580 Matter Stores 450 Matter Capacity 450 Sight Range 24 Robot Scan Range 12 Terrain Scan Density 10 Base Temperature (-) 150 Armor Coverage 225 Resistance: KI 5 Evasion (%) 44 Targeting Accuracy 8 Offensive Hacking 24 Defensive Hacking 5 Item Schematics ----------------- Combat Drone Bay | -7/Data Miner | Free Lgt. Regenerative Plating | -7/Data Miner | Free Cmb. Gravmag System | -7/Data Miner | Free Triangulator | -7/Data Miner | Free Exp. Terrain Scanner | -7/Data Miner | Free Exp. Terrain Scan Processor | -7/Data Miner | Free Mni. Smartbomb Launcher | -7/Data Miner | Free Kinetic Spear | -7/Data Miner | Free Robot Schematics ------------------ S-27 Virus | -7/Data Miner | Free G-50 Soldier | -7/Data Miner | Free L-41 Fighter | -7/Data Miner | Free H-66 Slayer | -7/Data Miner | Free I-36 Angel | -7/Data Miner | Free Fabricated ------------ Nothing Alien Tech Used ----------------- None Achievements -------------- Executioner Remodeling The Oracle Challenges ------------ None RPGLIKE | -11 -10 -10 -10 -9 -8 -7 -7 -7 -7 -6 -6 -5 -5 --------- Run | Scr Mat Min Exi Min Mat Fac Low Low Dat Pro Fac Fac Ext Levels Raised 20 | . . 1 . 1 5 1 1 1 . 1 5 2 2 XP Earned 33501 | 3000 1335 1075 200 1600 6702 1938 2129 500 650 1459 6612 3638 2663 XP Spent 31460 | 2980 . 1385 . 1600 4510 4500 1425 1035 . 2000 3025 7425 1575 Upgrades 73 | 9 . 5 . 2 13 4 7 5 . 1 8 13 6 Power Slot 3 | 1 . . . 1 . 1 . . . . . . . Propulsion Slot 3 | 1 . 1 . . . . . . . . . 1 . Utility Slot 7 | 1 . . . 1 2 1 . . . 1 . 1 . Weapon Slot 6 | 2 . . . . 1 1 . . . . 1 1 . Core Integrity 29 | 2 . 1 . . 3 . 5 3 . . 3 7 5 Heat Dissipation 10 | 2 . 1 . . 3 . . . . . 4 . . Inventory Capacity 2 | . . 1 . . . . 1 . . . . . . Sight Range 2 | . . . . . 1 1 . . . . . . . Sensor Range 6 | . . . . . 3 . . . . . . 3 . Ranged Accuracy 1 | . . . . . . . 1 . . . . . . Hack Attack % 2 | . . 1 . . . . . 1 . . . . . Hack Defense % 1 | . . . . . . . . 1 . . . . . KI Resistance % 1 | . . . . . . . . . . . . . 1 Protomatter Created 1445 | . 111 109 . 81 537 . 87 . . 3 269 172 76 Integrity Restored 3093 | . 67 484 . 202 1212 . 222 . . 162 453 204 87 Core 2958 | . 67 349 . 202 1212 . 222 . . 162 453 204 87 Parts 135 | . . 135 . . . . . . . . . . . Protomatter Decayed 445 | . 88 28 . 5 170 -1 . 46 . . 31 . 78 Game ------ Seed GhostHardlightCore Manual? 0 Play Time 01:45:50 Cumulative 42.9 hours Start 2020.01.19 @ 16:05:31 End 2020.01.19 @ 18:07:09 Sessions 1 Manual Loads 0 Difficulty Rogue Special Mode Winter2019/RPGLIKE Game No. 64 Rogue 64 Adventurer 0 Explorer 0 Win Type - Total 1 Types 1/0/0/0/0/0/0 Lore% 31 Gallery% 35 Achievement% 30 Wizard Run 0 Options --------- ASCII 0 Keyboard 0 Movement Mouse Keybinds 0 Fullscreen 1 Font 18/SmallcapsGlow Map View 76x50 Tactical HUD 1 Map Filters NONE Filters NONE Steam 1 RUN: a0e9e47c-c9ce-4973-991e-fc7f67227b13